[Event "Czech Open-GM 2022"]
[Site "Pardubice"]
[Date "2022.07.27"]
[Round "6.36"]
[White "Elmi, Saad Abobaker"]
[Black "Kistrup, Nicolai"]
[Result "1-0"]
[ECO "A06"]
[WhiteElo "2123"]
[BlackElo "2310"]
[Annotator "TA"]
[PlyCount "83"]
[EventDate "2022.07.22"]
[EventType "swiss"]
[EventCountry "CZE"]
[SourceTitle "playchess.com"]
[Source "ChessBase"]
[SourceQuality "1"]
[TimeControl "40/5400+30:1800+30"]

{[%evp 17,83,-14,-16,-38,-23,-26,-41,-18,-13,-13,-17,-20,-7,-16,0,-41,-28,-23,-28,-16,-25,-25,-10,-9,-22,-12,0,-1,0,0,0,-60,-54,-54,-56,-50,-57,-51,15,11,10,14,250,249,241,225,225,229,206,117,1021,1008,29985,608,29988,1065,29989,409,1574,1361,29991,843,29990,29990,29993,29992,29992,29993]} 1. Nf3 {[%emt 0:00:02]} d5 {[%emt 0:01:08]} 2. e3 {[%emt 0:00:16]} Nf6 {[%emt 0:11:56]} 3. c4 {[%emt 0:00:35]} e6 {[%emt 0:04:12]} 4. d4 {[%emt 0:00:51]} Be7 {[%emt 0:00:49]} 5. Nc3 {[%emt 0:00:41]} O-O {[%emt 0:01:19]} 6. Bd3 {[%emt 0:00:19]} dxc4 {[%emt 0:00:38]} 7. Bxc4 {[%emt 0:00:15]} a6 {[%emt 0:00:17]} 8. a4 $1 {[%emt 0:00:49][%mdl 4] is now more promising than 8.0-0.} c5 {[%emt 0:16:23]} 9. O-O {[%emt 0:01:37]} Nc6 {[%emt 0:01:25]} 10. Re1 {[%emt 0:02:27] D37: Queen's Gambit Declined: 5 Bf4.} Qc7 {[%emt 0:08:41]} 11. Qe2 {[%emt 0:05:54]} Rd8 {[%emt 0:06:57][%cal Rc5d4]} 12. Rd1 {[%emt 0:00:34] [#] Black is slightly better.} h6 $146 {[%emt 0:14:08]} ({Predecessor:} 12... b6 13. d5 exd5 14. Nxd5 Nxd5 15. Bxd5 Bb7 16. e4 Bf6 17. Bg5 Nd4 18. Nxd4 Bxg5 19. Bxb7 Qxb7 {1-0 (81) Pasko,L (2417)-Bremner,A (2204) Terme Catez 2021}) 13. h3 {[%emt 0:03:43]} Rb8 {[%emt 0:00:32]} 14. b3 {[%emt 0:01:48]} cxd4 {[%emt 0:08:22]} 15. exd4 {[%emt 0:00:30]} Na5 {[%emt 0:00:27]} 16. Ne5 {[%emt 0:04:39]} Nxb3 {[%emt 0:04:31]} 17. Bxb3 {[%emt 0:01:22]} Qxc3 {[%emt 0:00:03]} 18. Rb1 {[%emt 0:00:38]} Rxd4 {[%emt 0:02:37]} 19. Nc4 {[%emt 0:01:47]} Re4 {[%emt 0:08:15]} 20. Qf1 {[%emt 0:12:24]} Nd5 {[%emt 0:00:15] And now ...Bd7 would win.} 21. Nd2 $1 {[%emt 0:00:51]} Rf4 {[%emt 0:03:56][%cal Of4f2] aiming for ...Rxf2!} 22. Bb2 {[%emt 0:01:46]} Qc7 {[%emt 0:01:03] White must now prevent ...Bd7.} 23. Rbc1 {[%emt 0:00:32]} Bc5 {[%emt 0:00:52]} 24. Nf3 {[%emt 0:00:57] [#]} (24. Qe1 $1 $11 Rf5 25. Nf3 Rxf3 26. Be5 Bxf2+ 27. Qxf2 Qxe5 28. Qxf3) 24... Rxf3 $1 $15 {[%emt 0:02:57]} 25. gxf3 {[%emt 0:01:29]} Qg3+ $1 {[%emt 0:00:29]} 26. Qg2 {[%emt 0:00:12]} Bxf2+ {[%emt 0:00:12]} 27. Kh1 {[%emt 0:00:07][%cal Od1g1]} f6 {[%emt 0:00:57] [#]} (27... Qxg2+ $15 28. Kxg2 Be3) 28. Rg1 $1 $40 {[%emt 0:05:32][%mdl 128] Black needs to defend precisely.} Qxg2+ {[%emt 0:00:30]} 29. Rxg2 {[%emt 0:00:06] Bxd5 is the strong threat.} Bh4 $2 {[%emt 0:00:34]} (29... Be3 $11 30. Rcc2 Bf4) 30. Bxd5 $18 {[%emt 0:00:27]} exd5 {[%emt 0:00:08]} 31. Rc7 {[%emt 0:00:13]} g5 {[%emt 0:00:56] [#]} (31... Bxh3 32. Rgxg7+ Kh8 33. Rh7+ Kg8 34. Rcg7+ Kf8 35. Ba3+ Ke8 36. Rh8#) 32. Re2 $1 {[%emt 0:03:43][%cal Re2e8]} ({Don't do} 32. Kh2 $6 Bf5 $16) 32... Bf5 {[%emt 0:00:22]} (32... Bxh3 33. Ree7 Bg3 34. Rg7+ Kh8 35. Rh7+ Kg8 36. Rcg7+ Kf8 37. Ba3+) 33. Ree7 {[%emt 0:00:27]} (33. Bxf6 $18 b5 34. Re5) 33... g4 $2 {[%emt 0:00:20][%mdl 8192]} (33... Bxh3 {gets mated.} 34. Rg7+ Kh8 35. Bxf6) (33... Bg3 $16) 34. hxg4 {[%emt 0:00:37]} Bd3 {[%emt 0:00:35]} 35. Kg2 {[%emt 0:00:46]} (35. f4 $142 Kf8 36. f5 Rc8 37. Rf7+ (37. Rxc8+ Kxe7 38. Rc7+ Kd6 $16) 37... Ke8 38. Rce7+ Kd8 39. Rxb7 Be4+ 40. Kg1) 35... Rf8 {[%emt 0:00:42]} 36. Ba3 {[%emt 0:02:30]} (36. f4 $142 b5 37. f5 Be4+ 38. Kh3 Rd8 39. Rg7+ Kh8 40. Rh7+ Kg8 41. Rcg7+ Kf8 42. Ba3+ b4 43. Bxb4+ Rd6 44. Bxd6+ Ke8 45. Rh8#) 36... Rd8 {[%emt 0:00:30]} 37. Bc1 {[%emt 0:02:40]} (37. f4 $142 Bg6 38. Rg7+ Kh8 39. Rxg6 Re8 40. Rgg7 Re2+ 41. Kh3 Rh2+ 42. Kxh2 Bg3+ 43. Kxg3 d4 44. Rh7+ Kg8 45. Rcg7#) 37... Bg5 {[%emt 0:00:29]} (37... h5 $142 38. gxh5 Bf5) 38. f4 {[%emt 0:00:22][%cal Bf3f4,Bf4f5][%mdl 32]} Bh4 {[%emt 0:00:13]} 39. Kh3 {[%emt 0:01:54]} (39. f5 $142 Be4+ 40. Kh3 Bxf5 41. Rg7+ Kh8 42. gxf5 Re8 43. Rh7+ Kg8 44. Rcg7+ Kf8 45. Ba3+ Re7 46. Rxe7 Kg8 47. Reg7#) 39... Bf2 {[%emt 0:00:26]} 40. f5 {[%emt 0:00:55] White mates.} h5 {[%emt 0:00:38]} 41. Bh6 {[%emt 0:33:04]} hxg4+ {[%emt 0:03:42]} 42. Kxg4 {[%emt 0:00:00] Weighted Error Value: White=0.44/Black=1.26} 1-0

[Event "Czech Open-GM 2022"]
[Site "Pardubice"]
[Date "2022.07.27"]
[Round "6.37"]
[White "Mica, Marek"]
[Black "Dubinski, Mateusz"]
[Result "0-1"]
[ECO "D43"]
[WhiteElo "2304"]
[BlackElo "2206"]
[Annotator "TA"]
[PlyCount "124"]
[EventDate "2022.07.22"]
[EventType "swiss"]
[EventCountry "CZE"]
[SourceTitle "playchess.com"]
[Source "ChessBase"]
[SourceQuality "1"]
[TimeControl "40/5400+30:1800+30"]

{[%evp 13,124,7,7,-31,10,0,27,0,19,-2,-13,-23,-18,-43,-9,-25,22,0,0,-4,-8,-2,8,7,18,0,35,0,0,-12,-16,-28,-21,-29,-34,-48,0,0,7,0,0,-18,4,5,8,0,14,19,76,24,92,92,71,0,0,0,8,-25,22,0,0,0,0,0,8,-8,-14,-15,-8,-105,-111,-281,-276,-258,-251,-197,-270,-254,-206,-328,-452,-710,-571,-1000,-863,-906,-734,-453,-504,-11037,-11286,-12369,-6716,-29981,-29982,-5610,-2287,-5429,-8880,-5177,-4138,-29964,-29964,-29962,-754,-29971,-29972,-29974,-29975,-29979,-29980,-29984,-29976]} 1. d4 {[%emt 0:00:03]} d5 {[%emt 0:00:07]} 2. c4 {[%emt 0:00:08]} c6 {[%emt 0:00:04]} 3. Nf3 {[%emt 0:00:17]} Nf6 {[%emt 0:00:17]} 4. Nc3 {[%emt 0:00:31]} e6 {[%emt 0:00:04]} 5. Qd3 {[%emt 0:11:31]} dxc4 {[%emt 0:01:09]} 6. Qxc4 {[%emt 0:00:07]} b5 {[%emt 0:00:21]} 7. Qd3 {[%emt 0:00:06]} a6 {[%emt 0:01:38]} 8. g4 {[%emt 0:00:32] is currently scoring better than 8.e4. D43: Semi-Slav: 5 Bg5 h6.} c5 {[%emt 0:06:32]} 9. g5 {[%emt 0:07:39]} Nd5 {[%emt 0:06:41]} 10. Nxd5 {[%emt 0:05:37] White has an edge.} Qxd5 {[%emt 0:02:52]} 11. Bg2 {[%emt 0:09:20]} (11. e4 $5 {[%cal Re4d5]} Qd6 12. dxc5 Qxd3 13. Bxd3 $11) 11... Bb7 {[%emt 0:00:45]} 12. Rg1 {[%emt 0:00:42]} Qd6 {[%emt 0:04:29]} 13. Be3 {[%emt 0:23:01] [#]} Nd7 $146 {[%emt 0:13:53]} (13... c4 $5 {[%cal Rc4d3]} 14. Qd2 Be4 $15) ({Predecessor:} 13... c4 14. Qc2 Nc6 15. a3 Ne7 16. Bd2 Qc7 17. h4 Nd5 18. Ne5 Bd6 19. Bxd5 Bxd5 {0-1 (91) Sedlak,N (2557)-Kjartansson,G (2459) Batumi 2019}) 14. h4 {[%emt 0:04:59]} cxd4 {[%emt 0:10:43]} (14... c4 $142 15. Qc2 Be7) 15. Qxd4 {[%emt 0:01:03]} (15. Bxd4 {keeps more tension.} Bd5 16. a3 h6 17. g6) 15... Qxd4 {[%emt 0:04:05]} (15... Rc8 {looks sharper.} 16. a4 Bd5 17. axb5 Rc4) 16. Nxd4 {[%emt 0:03:24]} Bxg2 {[%emt 0:00:37]} 17. Rxg2 {[%emt 0:00:05]} Rc8 {[%emt 0:07:38]} 18. a4 {[%emt 0:03:17]} b4 {[%emt 0:00:48]} 19. Nb3 {[%emt 0:03:21]} Bd6 {[%emt 0:05:31]} 20. Kd1 {[%emt 0:01:31]} Ke7 {[%emt 0:01:42]} 21. Rc1 {[%emt 0:00:52]} Rxc1+ {[%emt 0:05:32]} 22. Kxc1 {[%emt 0:00:52]} Rc8+ {[%emt 0:00:14]} 23. Kb1 {[%emt 0:01:12]} Rc4 {[%emt 0:05:02]} 24. Nd4 {[%emt 0:06:29] [#]} g6 {[%emt 0:00:46]} (24... Bf4 $1 $15) 25. Rg4 $11 {[%emt 0:02:21][%cal Od4f5] Strongly threatening Nf5+!} Rc8 {[%emt 0:01:07]} 26. Nb3 {[%emt 0:05:07]} e5 {[%emt 0:04:20]} 27. h5 {[%emt 0:03:21]} Ke6 {[%emt 0:08:30]} ({Don't play} 27... gxh5 28. Rh4 $14) (27... f5 $5 {[%cal Rf5g4]} 28. Rh4 f4 $11) 28. hxg6 {[%emt 0:01:52]} hxg6 {[%emt 0:00:01]} 29. Rh4 {[%emt 0:00:31]} Nf8 {[%emt 0:02:08]} 30. Bd2 {[%emt 0:00:39]} Rb8 {[%emt 0:01:21]} (30... Be7 $11 {remains equal.}) 31. Na5 {[%emt 0:00:26]} (31. Rc4 $1 $16) 31... Bc5 {[%emt 0:01:46]} (31... Kd7 $11) 32. f3 $1 $16 {[%emt 0:01:08]} b3 {[%emt 0:01:40]} 33. Bc3 {[%emt 0:01:56]} (33. Rc4 $16 Nd7 34. Rc3) 33... Nd7 $11 {[%emt 0:00:37]} 34. Re4 {[%emt 0:00:33]} Bd6 {[%emt 0:01:06]} 35. Nc6 {[%emt 0:01:22]} Rb6 {[%emt 0:02:02]} (35... Nc5 $142 $1 36. Nxb8 Nxe4 37. Nxa6 Nxg5) 36. Nd8+ {[%emt 0:01:53]} (36. Rc4 $5 {[%cal Rc3a5]} Kd5 37. Na5 $14) 36... Ke7 {[%emt 0:00:58] aiming for ...Bc7.} 37. a5 {[%emt 0:00:13]} Rb5 {[%emt 0:00:09]} 38. Nc6+ {[%emt 0:00:05]} Kf8 {[%emt 0:00:09]} 39. Kc1 {[%emt 0:01:18]} Rc5 {[%emt 0:01:25]} 40. Nb4 {[%emt 0:00:34]} Rxa5 {[%emt 0:00:26]} 41. Kd2 {[%emt 0:01:46] [#]} (41. Nd3 $11 {keeps the balance.} Rb5 42. Ra4) 41... Ra4 $1 $17 {[%emt 0:10:32]} 42. Nc6 $2 {[%emt 0:16:24] Prevents a5. This move loses the game for White.} (42. Rg4 $17) 42... Rxe4 $19 {[%emt 0:08:33]} 43. fxe4 {[%emt 0:00:06][%mdl 4096] Endgame [#] KBN-KBN} Nc5 $1 {[%emt 0:03:37]} 44. Ke3 {[%emt 0:00:47]} Na4 {[%emt 0:01:26]} 45. Kd3 {[%emt 0:00:36]} f6 {[%emt 0:02:22]} 46. gxf6 {[%emt 0:11:21]} (46. Be1 {was called for.}) 46... Nxc3 {[%emt 0:02:40]} 47. Kxc3 {[%emt 0:00:07] KB-KN} (47. bxc3 $142 g5 48. Na5) 47... Kf7 {[%emt 0:03:07]} 48. Kxb3 {[%emt 0:01:22]} g5 {[%emt 0:00:35] ...g4 is the strong threat.} 49. Kc3 {[%emt 0:00:44]} g4 {[%emt 0:00:36] White must now prevent ...g3.} 50. Kd2 {[%emt 0:00:33]} Kxf6 {[%emt 0:00:06]} 51. e3 {[%emt 0:01:21]} (51. Ke1 $142 Kg5 52. Kf2) 51... Kg5 {[%emt 0:00:32]} 52. Ke2 {[%emt 0:00:45]} Kh4 {[%emt 0:00:05]} 53. Kf2 {[%emt 0:00:30]} Kh3 {[%emt 0:00:54]} 54. Kg1 {[%emt 0:00:21]} Kg3 {[%emt 0:01:48] Threatens to win with ...Kh3.} 55. Na5 {[%emt 0:00:41]} Kf3 {[%emt 0:00:34][%csl LRe3,LRe4] ( -> ...Bc5)} 56. Nc4 {[%emt 0:00:07]} Bc7 {[%emt 0:00:04]} 57. b3 {[%emt 0:00:40]} a5 {[%emt 0:00:38][%cal Ba6a5,Ba5a4,Ba4a3][%mdl 32]} 58. Kf1 {[%emt 0:00:50]} Kxe4 {[%emt 0:00:38]} (58... g3 $142 59. Kg1 g2 60. Nd2+ Kxe3 61. Nf1+ gxf1=Q+ 62. Kxf1 Kxe4 63. Ke2 Kd4 64. Kf3 e4+ 65. Kg2 e3 66. Kf3 Kd3 67. b4 axb4 68. Kg2 e2 69. Kf2 b3 70. Kf3 e1=Q 71. Kg4 Qe6+ 72. Kh5 Qg8 73. Kh4 Qg6 74. Kh3 Qg3#) 59. Kg2 {[%emt 0:00:08]} Kd3 {[%emt 0:00:35] Black mates.} 60. Kg3 {[%emt 0:00:32]} Kc3 {[%emt 0:00:25]} 61. Kxg4 {[%emt 0:00:08]} a4 {[%emt 0:00:58]} 62. Nxe5 {[%emt 0:01:04]} a3 {[%emt 0:00:09] Weighted Error Value: White=0.78/Black=0.26 (precise)} ({Not} 62... Bxe5 63. bxa4 Bh2 64. Kh5 $11) 0-1

[Event "Czech Open-GM 2022"]
[Site "Pardubice"]
[Date "2022.07.27"]
[Round "6.38"]
[White "Jirousek, Jan"]
[Black "Kokoszczynski, Jan"]
[Result "1/2-1/2"]
[ECO "E16"]
[WhiteElo "2094"]
[BlackElo "2297"]
[Annotator "TA"]
[PlyCount "63"]
[EventDate "2022.07.22"]
[EventType "swiss"]
[EventCountry "CZE"]
[SourceTitle "playchess.com"]
[Source "ChessBase"]
[SourceQuality "1"]
[TimeControl "40/5400+30:1800+30"]

{[%evp 14,63,22,25,22,22,23,19,36,-7,24,-14,30,0,13,0,50,37,109,102,98,106,108,121,159,112,115,122,126,122,113,116,156,153,135,150,125,72,76,75,76,73,82,79,109,108,128,93,136,114,132,0]} 1. d4 {[%emt 0:00:06]} Nf6 {[%emt 0:00:58]} 2. Nf3 {[%emt 0:00:10]} e6 {[%emt 0:00:25]} 3. c4 {[%emt 0:00:15]} Bb4+ {[%emt 0:00:25]} 4. Bd2 {[%emt 0:00:33]} Qe7 {[%emt 0:03:13]} 5. a3 {[%emt 0:02:25]} Bxd2+ {[%emt 0:00:22]} 6. Qxd2 {[%emt 0:00:05]} d6 {[%emt 0:02:15]} 7. Nc3 {[%emt 0:00:22]} O-O {[%emt 0:01:02]} 8. g3 {[%emt 0:01:18]} e5 {[%emt 0:10:28] E11: Bogo-Indian.} 9. Bg2 {[%emt 0:07:53]} Re8 {[%emt 0:04:24]} 10. O-O {[%emt 0:11:07]} c6 {[%emt 0:00:57] The position is equal.} 11. e3 {[%emt 0:04:06] [#]} Bg4 $146 {[%emt 0:10:09]} (11... e4 $5 {[%cal Re4f3]} 12. Ng5 Bf5 $11) ({Predecessor:} 11... Nbd7 12. Qc2 Nb6 13. b3 Bg4 14. h3 Bxf3 15. Bxf3 e4 16. Bg2 d5 17. c5 Nbd7 {0-1 (46) Blagojevic,M (2160)-Kovacevic,B (2449) Bosnjaci 2014}) 12. Rfc1 {[%emt 0:03:48]} Nbd7 {[%emt 0:01:18]} 13. Qc2 {[%emt 0:07:54]} (13. h3 $5 {[%cal Rh3g4]} Bxf3 14. Bxf3 $11) 13... Rac8 {[%emt 0:17:49]} 14. b4 {[%emt 0:04:43]} Qe6 {[%emt 0:06:36]} (14... h6 $11) 15. d5 $1 $14 {[%emt 0:10:32]} cxd5 {[%emt 0:02:05]} (15... Qe7 $1 $14) 16. Ng5 $1 $36 {[%emt 0:07:43][%csl LRd5,LRe6][%mdl 2048] White has strong initiative.} Qf5 {[%emt 0:02:13]} 17. Qxf5 {[%emt 0:01:41]} Bxf5 {[%emt 0:00:04] [#]} 18. Nb5 $1 {[%emt 0:07:06]} h6 {[%emt 0:03:35]} (18... Rxc4 $2 19. Nxd6 Rxc1+ 20. Rxc1 $18) 19. Nxf7 {[%emt 0:02:51] White is more active.} Kxf7 {[%emt 0:01:46]} 20. Nxd6+ {[%emt 0:00:06]} Kg6 {[%emt 0:03:02][%cal Od5c4]} 21. Nxc8 {[%emt 0:03:14]} ({Don't play} 21. Nxe8 Rxe8 22. cxd5 Nb6 $14) 21... Rxc8 {[%emt 0:00:21]} 22. cxd5 {[%emt 0:00:22][%mdl 64] Discovered Attack} Rb8 {[%emt 0:01:29] [#]} 23. f3 $1 {[%emt 0:03:19] Hoping for e4.} Nb6 {[%emt 0:01:07]} 24. e4 {[%emt 0:01:23]} Bd7 {[%emt 0:00:06]} 25. Kf2 {[%emt 0:01:58]} ({White should play} 25. Rc5) 25... Ne8 {[%emt 0:05:54]} 26. Ke3 {[%emt 0:01:31]} Kf6 {[%emt 0:00:08]} 27. Bf1 {[%emt 0:02:47]} Ke7 {[%emt 0:03:25]} 28. Bd3 {[%emt 0:03:16]} Kd6 {[%emt 0:00:16]} 29. Rc5 {[%emt 0:01:38]} Nf6 {[%emt 0:04:22]} 30. Rac1 {[%emt 0:01:44]} Rf8 {[%emt 0:00:51]} 31. Be2 {[%emt 0:03:30]} Re8 {[%emt 0:01:04]} 32. Bd3 {[%emt 0:01:57] Weighted Error Value: White=0.10 (very precise) /Black=0.20 (precise)} (32. Bd1 $16) 1/2-1/2

[Event "Czech Open-GM 2022"]
[Site "Pardubice"]
[Date "2022.07.27"]
[Round "6.39"]
[White "Ahmed, Fareed"]
[Black "Akesson, Ralf"]
[Result "0-1"]
[ECO "B10"]
[WhiteElo "1920"]
[BlackElo "2427"]
[Annotator "TA"]
[PlyCount "42"]
[EventDate "2022.07.22"]
[EventType "swiss"]
[EventCountry "CZE"]
[SourceTitle "playchess.com"]
[Source "ChessBase"]
[SourceQuality "1"]
[TimeControl "40/5400+30:1800+30"]

{[%evp 19,42,0,0,0,0,0,0,-12,0,-24,-12,-161,-160,-211,-208,-290,-279,-289,-241,-250,-242,-254,-237,-267,-231]} 1. e4 {[%emt 0:00:08]} c6 {[%emt 0:00:50]} 2. c4 {[%emt 0:00:08]} d5 {[%emt 0:00:22]} 3. exd5 {[%emt 0:00:06]} cxd5 {[%emt 0:00:09]} 4. cxd5 {[%emt 0:00:05]} Nf6 {[%emt 0:00:38]} 5. Nc3 {[%emt 0:00:10]} Nxd5 {[%emt 0:00:26]} 6. Nf3 {[%emt 0:00:10]} Nxc3 {[%emt 0:00:30]} 7. bxc3 {[%emt 0:00:05]} g6 {[%emt 0:00:29]} 8. d4 {[%emt 0:00:09]} Bg7 {[%emt 0:00:19]} 9. Be2 {[%emt 0:00:14]} O-O {[%emt 0:00:25]} 10. O-O {[%emt 0:00:08]} Nc6 {[%emt 0:01:40]} 11. Bf4 {[%emt 0:26:09] B10: Caro-Kann: 2 d3 and 2 c4.} Be6 {[%emt 0:03:39]} 12. Qd2 {[%emt 0:01:17]} Rc8 {[%emt 0:01:59] [#]} 13. Rab1 $146 {[%emt 0:10:58] The position is equal.} ({Predecessor:} 13. Bh6 Bd5 14. Bxg7 Kxg7 15. Qe3 e6 16. Rfd1 Ne7 17. Ne5 Nf5 18. Qh3 f6 19. Ng4 Qa5 20. Rdc1 Qa3 21. Qd3 {0-1 (73) Sichinava,R (2445)-Supatashvili,K (2445) Tbilisi 1996}) 13... Na5 {[%emt 0:02:09]} 14. Ne5 {[%emt 0:01:35]} f6 {[%emt 0:06:42]} 15. Ng4 {[%emt 0:24:07] [#]} (15. Nf3 $11 {and White stays safe.}) 15... g5 $1 $19 {[%emt 0:07:51]} 16. Bxg5 {[%emt 0:06:32]} (16. Bg3 $17 {was worth a try.}) 16... fxg5 {[%emt 0:01:12]} 17. Qxg5 {[%emt 0:00:06]} Rxc3 {[%emt 0:06:32]} 18. Rfd1 {[%emt 0:00:05]} b6 {[%emt 0:03:11]} 19. d5 {[%emt 0:01:42]} Bxg4 {[%emt 0:02:12]} 20. Bxg4 {[%emt 0:00:05]} Qd6 {[%emt 0:01:07]} 21. Re1 {[%emt 0:02:07]} Qf6 {[%emt 0:01:20] Black took control after the opening.  Weighted Error Value: White=0.45/Black=0.06 (flawless)} 0-1

[Event "Czech Open-GM 2022"]
[Site "Pardubice"]
[Date "2022.07.27"]
[Round "6.40"]
[White "Kawulok, Marek"]
[Black "Smith, Bryan"]
[Result "0-1"]
[ECO "B32"]
[WhiteElo "2181"]
[BlackElo "2421"]
[Annotator "TA"]
[PlyCount "72"]
[EventDate "2022.07.22"]
[EventType "swiss"]
[EventCountry "CZE"]
[SourceTitle "playchess.com"]
[Source "ChessBase"]
[SourceQuality "1"]
[TimeControl "40/5400+30:1800+30"]

{[%evp 16,72,23,32,32,19,72,70,125,56,50,0,0,0,0,-45,-51,-35,-41,-57,-37,-45,-40,-40,-29,-28,-19,-20,-26,-26,-9,-54,-51,-77,-79,-87,-74,-80,-83,-87,-105,-114,-93,-127,-123,-203,-193,-282,-254,-335,-304,-736,-743,-738,-700,-900,-885,-953,-933]} 1. e4 {[%emt 0:00:03]} c5 {[%emt 0:00:06]} 2. Nf3 {[%emt 0:00:05][%cal Bg1f3,Bf3d4,Bd4b5,Bb5a3,Ba3c4][%mdl 32]} Nc6 {[%emt 0:00:15]} 3. d4 {[%emt 0:00:33]} cxd4 {[%emt 0:00:09]} 4. Nxd4 {[%emt 0:00:06]} e5 {[%emt 0:01:02]} 5. Nb5 {[%emt 0:00:08]} d6 {[%emt 0:00:09]} 6. N1c3 {[%emt 0:00:27]} a6 {[%emt 0:00:05]} 7. Na3 {[%emt 0:00:05]} Be6 {[%emt 0:01:05]} 8. Nc4 {[%emt 0:04:01]} b5 {[%emt 0:00:38] 8...Rb8 is the fancy move.} 9. Ne3 {[%emt 0:00:08]} Nf6 {[%emt 0:00:45] B32: Sicilian: Löwenthal and Kalashnikov Variations.} 10. Ned5 {[%emt 0:11:14]} Bxd5 {[%emt 0:04:29]} (10... Be7 $11) 11. Nxd5 $16 {[%emt 0:07:51]} Nxe4 {[%emt 0:01:17] [#]} (11... Be7 $14) 12. Qf3 {[%emt 0:00:25]} (12. Be3 $1 $16 {[%cal Re3b6] aiming for Bb6.} Rb8 13. a4) 12... Nc5 $14 {[%emt 0:05:08]} 13. Nf6+ {[%emt 0:01:47]} gxf6 $11 {[%emt 0:00:30]} 14. Qxc6+ {[%emt 0:00:07]} Ke7 {[%emt 0:04:10] [#]} 15. b4 $146 {[%emt 0:09:52]} ({Predecessor:} 15. Be3 Rc8 16. Qd5 Qd7 17. O-O-O h5 18. g3 Qc6 19. Bh3 Qxd5 20. Rxd5 Ne6 21. f4 {0-1 (44) Cioara,A (2386)-Grigore,G (2473) Bucharest 2003}) 15... Rc8 {[%emt 0:03:06]} 16. Qd5 {[%emt 0:00:12]} Na4 {[%emt 0:07:10] And now ...Qc7 would win.} 17. Bd3 {[%emt 0:08:38]} Qc7 {[%emt 0:05:58] Hoping for ...Qc3+.} 18. O-O $1 {[%emt 0:05:26]} Qc6 {[%emt 0:01:42]} 19. Qb3 {[%emt 0:00:32]} d5 {[%emt 0:13:57] White must now prevent ...Qe6.} 20. Bf5 {[%emt 0:08:45] Inhibits Qe6.} Rc7 {[%emt 0:05:00]} 21. Be3 {[%emt 0:07:58] This bishop pair is nice.} Ke8 {[%emt 0:14:09]} 22. Rfe1 {[%emt 0:05:45]} Be7 {[%emt 0:11:57]} 23. Bd2 {[%emt 0:06:56]} h5 {[%emt 0:01:42]} 24. Qg3 {[%emt 0:01:09]} Kf8 {[%emt 0:00:56] Inhibits Qg7+.} 25. Qf3 {[%emt 0:07:36]} Nb2 {[%emt 0:01:45][%cal Ba4b2,Bb2c4,Bc4d6][%mdl 32]} 26. a3 {[%emt 0:03:18]} Nc4 {[%emt 0:01:09]} 27. Rad1 {[%emt 0:00:31]} Nd6 {[%emt 0:01:22]} 28. Bh3 {[%emt 0:01:03]} d4 {[%emt 0:00:52] [#] Threatens to win with ...Qxf3.} 29. Qe2 {[%emt 0:00:30]} Qc4 {[%emt 0:00:51]} (29... Qxc2 $2 30. Rc1 Qc4 31. Qd1 $18) 30. Qf3 {[%emt 0:00:48]} (30. f3 $17) 30... Qxc2 $19 {[%emt 0:02:08]} 31. Qa8+ {[%emt 0:03:31]} (31. Qd5 $142) 31... Kg7 {[%emt 0:00:06]} 32. Qxa6 {[%emt 0:00:09]} Rb8 {[%emt 0:01:51]} 33. Rf1 $2 {[%emt 0:00:56]} (33. g3) 33... Nc4 {[%emt 0:07:32] Black is clearly winning.} 34. Bc1 {[%emt 0:00:30]} Qe4 {[%emt 0:00:30]} 35. a4 {[%emt 0:01:49]} Rb6 {[%emt 0:00:23]} 36. Rde1 {[%emt 0:02:39]} Qd5 {[%emt 0:00:42] Weighted Error Value: White=0.46/Black=0.07 (flawless)} 0-1